[Event "Titled Tuesday Blitz September 13 Late 2022"]
[White "Vasquez Schroeder, Rodrigo"]
[Black "Salman, Pavel"]
[WhiteFideId "3400042"]
[BlackFideId "24153753"]
[WhiteElo "2577"]
[BlackElo "2039"]
[Result "1/2-1/2"]
[Round "03"]
[TimeControl "180+1"]
[Date "2022.09.13"]
[WhiteClock "0:00:30"]
[BlackClock "0:00:08"]

1. e4 {[%clk 0:03:00]}  c5 {[%clk 0:02:59]} 2. Nf3 {[%clk 0:03:00]}  e6 {[%clk 0:03:00]} 3. d4 {[%clk 0:03:00]}  cxd4 {[%clk 0:03:00]} 4. Nxd4 {[%clk 0:03:01]}  a6 {[%clk 0:03:01]} 5. Bd3 {[%clk 0:03:02]}  Bc5 {[%clk 0:03:01]} 6. Nb3 {[%clk 0:03:01]}  Ba7 {[%clk 0:03:01]} 7. O-O {[%clk 0:02:59]}  Ne7 {[%clk 0:03:01]} 8. Qe2 {[%clk 0:02:59]}  e5 {[%clk 0:03:01]} 9. Be3 {[%clk 0:02:59]}  Nbc6 {[%clk 0:03:00]} 10. Bxa7 {[%clk 0:02:57]}  Rxa7 {[%clk 0:03:01]} 11. Qe3 {[%clk 0:02:58]}  d6 {[%clk 0:02:59]} 12. c4 {[%clk 0:02:55]}  O-O {[%clk 0:02:59]} 13. Nc3 {[%clk 0:02:55]}  Be6 {[%clk 0:02:58]} 14. Rac1 {[%clk 0:02:51]}  Qb8 {[%clk 0:02:58]} 15. Rfd1 {[%clk 0:02:51]}  b5 {[%clk 0:02:45]} 16. Nd5 {[%clk 0:02:45]}  bxc4 {[%clk 0:02:20]} 17. Bxc4 {[%clk 0:02:46]}  Bxd5 {[%clk 0:02:19]} 18. Bxd5 {[%clk 0:02:38]}  Nb4 {[%clk 0:02:12]} 19. Na5 {[%clk 0:02:30]}  Nbxd5 {[%clk 0:02:04]} 20. exd5 {[%clk 0:02:29]}  Rc7 {[%clk 0:02:03]} 21. Rxc7 {[%clk 0:02:07]}  Qxc7 {[%clk 0:02:04]} 22. Qd2 {[%clk 0:02:08]}  Rc8 {[%clk 0:01:57]} 23. g3 {[%clk 0:02:07]}  h6 {[%clk 0:01:52]} 24. b4 {[%clk 0:02:06]}  Qc2 {[%clk 0:01:31]} 25. Nb7 {[%clk 0:01:57]}  Nf5 {[%clk 0:01:23]} 26. g4 {[%clk 0:01:35]}  Qxd2 {[%clk 0:01:15]} 27. Rxd2 {[%clk 0:01:34]}  Nh4 {[%clk 0:01:12]} 28. Rd1 {[%clk 0:01:31]}  Nf3+ {[%clk 0:00:57]} 29. Kg2 {[%clk 0:01:29]}  Nd4 {[%clk 0:00:57]} 30. Nxd6 {[%clk 0:01:29]}  Rd8 {[%clk 0:00:57]} 31. Nf5 {[%clk 0:01:25]}  Nxf5 {[%clk 0:00:48]} 32. gxf5 {[%clk 0:01:25]}  Kf8 {[%clk 0:00:48]} 33. Kf3 {[%clk 0:01:20]}  Ke7 {[%clk 0:00:48]} 34. Ke4 {[%clk 0:01:21]}  Rc8 {[%clk 0:00:38]} 35. d6+ {[%clk 0:01:17]}  Kd7 {[%clk 0:00:38]} 36. Kxe5 {[%clk 0:01:16]}  Rc2 {[%clk 0:00:38]} 37. a4 {[%clk 0:01:12]}  Re2+ {[%clk 0:00:38]} 38. Kd5 {[%clk 0:01:12]}  Rxf2 {[%clk 0:00:38]} 39. Kc5 {[%clk 0:01:12]}  Rxf5+ {[%clk 0:00:29]} 40. Kb6 {[%clk 0:01:12]}  Rf4 {[%clk 0:00:29]} 41. Ka5 {[%clk 0:01:09]}  g5 {[%clk 0:00:26]} 42. b5 {[%clk 0:01:04]}  axb5 {[%clk 0:00:26]} 43. axb5 {[%clk 0:01:05]}  Rf2 {[%clk 0:00:26]} 44. h3 {[%clk 0:01:02]}  Rb2 {[%clk 0:00:22]} 45. Rd4 {[%clk 0:01:01]}  h5 {[%clk 0:00:22]} 46. Rd5 {[%clk 0:01:00]}  g4 {[%clk 0:00:21]} 47. Rxh5 {[%clk 0:00:52]}  gxh3 {[%clk 0:00:21]} 48. Rxh3 {[%clk 0:00:53]}  Kxd6 {[%clk 0:00:22]} 49. Rf3 {[%clk 0:00:53]}  Ke6 {[%clk 0:00:13]} 50. b6 {[%clk 0:00:50]}  f5 {[%clk 0:00:14]} 51. Rf4 {[%clk 0:00:45]}  Ke5 {[%clk 0:00:14]} 52. Rb4 {[%clk 0:00:45]}  Ra2+ {[%clk 0:00:14]} 53. Kb5 {[%clk 0:00:45]}  Rh2 {[%clk 0:00:09]} 54. b7 {[%clk 0:00:45]}  Rh8 {[%clk 0:00:10]} 55. Kc6 {[%clk 0:00:39]}  f4 {[%clk 0:00:10]} 56. b8=Q+ {[%clk 0:00:38]}  Rxb8 {[%clk 0:00:09]} 57. Rxb8 {[%clk 0:00:39]}  f3 {[%clk 0:00:10]} 58. Rf8 {[%clk 0:00:39]}  Ke4 {[%clk 0:00:10]} 59. Kc5 {[%clk 0:00:40]}  Ke3 {[%clk 0:00:10]} 60. Kc4 {[%clk 0:00:40]}  f2 {[%clk 0:00:10]} 61. Kc3 {[%clk 0:00:41]}  Ke2 {[%clk 0:00:10]} 62. Re8+ {[%clk 0:00:41]}  Kf3 {[%clk 0:00:07]} 63. Rf8+ {[%clk 0:00:39]}  Ke2 {[%clk 0:00:07]} 64. Re8+ {[%clk 0:00:29]}  Kf3 {[%clk 0:00:07]} 65. Kd2 {[%clk 0:00:29]}  f1=Q {[%clk 0:00:07]} 66. Rf8+ {[%clk 0:00:29]}  Kg2 {[%clk 0:00:08]} 67. Rxf1 {[%clk 0:00:30]}  Kxf1 {[%clk 0:00:08]} 1/2-1/2


[Site "https://www.chess.com"]

[Event "Titled Tuesday Blitz September 13 Late 2022"]
[White "Xiong, Jeffery"]
[Black "Shirov, Alexei"]
[WhiteFideId "2047640"]
[BlackFideId "2209390"]
[WhiteElo "2714"]
[BlackElo "2678"]
[Result "1-0"]
[Round "03"]
[TimeControl "180+1"]
[Date "2022.09.13"]
[WhiteClock "0:02:31"]
[BlackClock "0:01:04"]

1. d4 {[%clk 0:03:00]}  d5 {[%clk 0:02:59]} 2. c4 {[%clk 0:03:01]}  c6 {[%clk 0:02:59]} 3. Nf3 {[%clk 0:03:01]}  Nf6 {[%clk 0:02:59]} 4. cxd5 {[%clk 0:03:02]}  cxd5 {[%clk 0:02:59]} 5. Nc3 {[%clk 0:03:03]}  Nc6 {[%clk 0:02:58]} 6. Bf4 {[%clk 0:03:04]}  Bf5 {[%clk 0:02:58]} 7. Qb3 {[%clk 0:03:03]}  Na5 {[%clk 0:02:52]} 8. Qa4+ {[%clk 0:03:04]}  Bd7 {[%clk 0:02:51]} 9. Qc2 {[%clk 0:03:04]}  Rc8 {[%clk 0:02:40]} 10. e3 {[%clk 0:03:04]}  e6 {[%clk 0:02:37]} 11. Bd3 {[%clk 0:03:03]}  Nh5 {[%clk 0:02:26]} 12. Bg5 {[%clk 0:02:57]}  f6 {[%clk 0:02:14]} 13. h4 {[%clk 0:02:56]}  Qb6 {[%clk 0:02:10]} 14. g4 {[%clk 0:02:51]}  fxg5 {[%clk 0:02:03]} 15. hxg5 {[%clk 0:02:52]}  Nf4 {[%clk 0:01:52]} 16. exf4 {[%clk 0:02:52]}  Bd6 {[%clk 0:01:44]} 17. f5 {[%clk 0:02:36]}  exf5 {[%clk 0:01:36]} 18. Bxf5 {[%clk 0:02:31]}  Bxf5 {[%clk 0:01:06]} 19. Qxf5 {[%clk 0:02:32]}  Rf8 {[%clk 0:01:04]} 20. Qxc8+ {[%clk 0:02:31]} 1-0


[Site "https://www.chess.com"]

[Event "Titled Tuesday Blitz September 13 Late 2022"]
[White "Al Hosani, Omran"]
[Black "Tomb, Maroun"]
[WhiteFideId "9308733"]
[BlackFideId "5300398"]
[WhiteElo "2167"]
[BlackElo "2544"]
[Result "1/2-1/2"]
[Round "04"]
[TimeControl "180+1"]
[Date "2022.09.13"]
[WhiteClock "0:00:08"]
[BlackClock "0:00:36"]

1. Nf3 {[%clk 0:02:58]}  d6 {[%clk 0:03:00]} 2. g3 {[%clk 0:02:59]}  Nf6 {[%clk 0:03:01]} 3. Bg2 {[%clk 0:02:59]}  Nbd7 {[%clk 0:03:01]} 4. O-O {[%clk 0:02:59]}  e5 {[%clk 0:03:02]} 5. d4 {[%clk 0:03:00]}  Be7 {[%clk 0:03:03]} 6. c4 {[%clk 0:03:00]}  c6 {[%clk 0:03:03]} 7. Nc3 {[%clk 0:03:00]}  O-O {[%clk 0:03:03]} 8. e4 {[%clk 0:03:01]}  a6 {[%clk 0:03:03]} 9. c5 {[%clk 0:02:57]}  exd4 {[%clk 0:03:02]} 10. cxd6 {[%clk 0:02:58]}  Bxd6 {[%clk 0:03:02]} 11. Nxd4 {[%clk 0:02:58]}  Nc5 {[%clk 0:02:53]} 12. h3 {[%clk 0:02:52]}  Re8 {[%clk 0:02:48]} 13. Re1 {[%clk 0:02:46]}  h6 {[%clk 0:02:45]} 14. f4 {[%clk 0:02:41]}  Bf8 {[%clk 0:02:42]} 15. e5 {[%clk 0:02:37]}  Nd5 {[%clk 0:02:29]} 16. Nxd5 {[%clk 0:02:34]}  cxd5 {[%clk 0:02:30]} 17. Be3 {[%clk 0:02:28]}  Ne4 {[%clk 0:02:29]} 18. Kh2 {[%clk 0:02:27]}  f6 {[%clk 0:02:20]} 19. Nf3 {[%clk 0:01:52]}  Be6 {[%clk 0:02:08]} 20. Bd4 {[%clk 0:01:49]}  Rc8 {[%clk 0:01:59]} 21. Qb3 {[%clk 0:01:35]}  Qd7 {[%clk 0:01:53]} 22. exf6 {[%clk 0:01:25]}  gxf6 {[%clk 0:01:54]} 23. Nh4 {[%clk 0:01:21]}  Bf7 {[%clk 0:01:41]} 24. Rad1 {[%clk 0:01:15]}  Kg7 {[%clk 0:01:18]} 25. Bxe4 {[%clk 0:01:07]}  Rxe4 {[%clk 0:01:10]} 26. Rxe4 {[%clk 0:00:19]}  dxe4 {[%clk 0:01:11]} 27. Qe3 {[%clk 0:00:15]}  Rc2+ {[%clk 0:01:01]} 28. Rd2 {[%clk 0:00:16]}  Rxd2+ {[%clk 0:01:00]} 29. Qxd2 {[%clk 0:00:16]}  Kg8 {[%clk 0:00:49]} 30. Qc3 {[%clk 0:00:15]}  f5 {[%clk 0:00:47]} 31. Ng2 {[%clk 0:00:14]}  Bxa2 {[%clk 0:00:45]} 32. Ne3 {[%clk 0:00:14]}  Be6 {[%clk 0:00:45]} 33. g4 {[%clk 0:00:14]}  Bd6 {[%clk 0:00:40]} 34. Be5 {[%clk 0:00:13]}  Bxe5 {[%clk 0:00:39]} 35. Qxe5 {[%clk 0:00:12]}  Qd2+ {[%clk 0:00:38]} 36. Ng2 {[%clk 0:00:12]}  Qd7 {[%clk 0:00:36]} 37. Ne3 {[%clk 0:00:09]}  Qd2+ {[%clk 0:00:35]} 38. Ng2 {[%clk 0:00:10]}  Qd7 {[%clk 0:00:36]} 39. Ne3 {[%clk 0:00:08]} 1/2-1/2


[Site "https://www.chess.com"]

[Event "Titled Tuesday Blitz September 13 Late 2022"]
[White "Andreikin, Dmitry"]
[Black "Hansen, Eric"]
[WhiteFideId "4158814"]
[BlackFideId "2606771"]
[WhiteElo "2736"]
[BlackElo "2568"]
[Result "1-0"]
[Round "04"]
[TimeControl "180+1"]
[Date "2022.09.13"]
[WhiteClock "0:00:04"]
[BlackClock "0:00:02"]

1. d4 {[%clk 0:03:00]}  Nf6 {[%clk 0:02:59]} 2. c4 {[%clk 0:03:00]}  e6 {[%clk 0:02:57]} 3. g3 {[%clk 0:02:59]}  Bb4+ {[%clk 0:02:56]} 4. Bd2 {[%clk 0:02:59]}  Be7 {[%clk 0:02:56]} 5. Bg2 {[%clk 0:02:57]}  d5 {[%clk 0:02:57]} 6. Nf3 {[%clk 0:02:57]}  O-O {[%clk 0:02:55]} 7. O-O {[%clk 0:02:57]}  c6 {[%clk 0:02:56]} 8. Qc2 {[%clk 0:02:54]}  Nbd7 {[%clk 0:02:50]} 9. b3 {[%clk 0:02:54]}  a5 {[%clk 0:02:47]} 10. Nc3 {[%clk 0:02:52]}  b6 {[%clk 0:02:44]} 11. e4 {[%clk 0:02:52]}  Ba6 {[%clk 0:02:41]} 12. Ne5 {[%clk 0:02:39]}  Rc8 {[%clk 0:02:39]} 13. Rfd1 {[%clk 0:02:20]}  dxc4 {[%clk 0:02:30]} 14. Nxc4 {[%clk 0:02:19]}  b5 {[%clk 0:02:30]} 15. Ne3 {[%clk 0:02:10]}  b4 {[%clk 0:01:21]} 16. Na4 {[%clk 0:02:09]}  Be2 {[%clk 0:01:19]} 17. Rdc1 {[%clk 0:01:57]}  Bb5 {[%clk 0:01:14]} 18. Qd1 {[%clk 0:01:36]}  g6 {[%clk 0:00:53]} 19. Nc4 {[%clk 0:01:17]}  Re8 {[%clk 0:00:33]} 20. Bf4 {[%clk 0:01:12]}  Nh5 {[%clk 0:00:33]} 21. Be3 {[%clk 0:00:57]}  Nhf6 {[%clk 0:00:33]} 22. h4 {[%clk 0:00:54]}  h5 {[%clk 0:00:32]} 23. Bf4 {[%clk 0:00:54]}  Ng4 {[%clk 0:00:31]} 24. Nd6 {[%clk 0:00:49]}  Bxd6 {[%clk 0:00:28]} 25. Bxd6 {[%clk 0:00:50]}  e5 {[%clk 0:00:29]} 26. Nc5 {[%clk 0:00:43]}  Nxf2 {[%clk 0:00:22]} 27. Qf3 {[%clk 0:00:30]}  Ng4 {[%clk 0:00:21]} 28. Bh3 {[%clk 0:00:25]}  exd4 {[%clk 0:00:15]} 29. Bxg4 {[%clk 0:00:17]}  hxg4 {[%clk 0:00:15]} 30. Qf4 {[%clk 0:00:18]}  Nxc5 {[%clk 0:00:04]} 31. Rxc5 {[%clk 0:00:19]}  Re6 {[%clk 0:00:04]} 32. e5 {[%clk 0:00:15]}  d3 {[%clk 0:00:04]} 33. Qxg4 {[%clk 0:00:12]}  Ra8 {[%clk 0:00:03]} 34. Qd4 {[%clk 0:00:08]}  Qb6 {[%clk 0:00:02]} 35. Rf1 {[%clk 0:00:05]}  Rd8 {[%clk 0:00:03]} 36. Qf2 {[%clk 0:00:04]}  Rd7 {[%clk 0:00:03]} 37. h5 {[%clk 0:00:05]}  d2 {[%clk 0:00:03]} 38. Rd1 {[%clk 0:00:05]}  Rexd6 {[%clk 0:00:02]} 39. exd6 {[%clk 0:00:05]}  Rxd6 {[%clk 0:00:03]} 40. hxg6 {[%clk 0:00:06]}  fxg6 {[%clk 0:00:03]} 41. Re5 {[%clk 0:00:05]}  Qd8 {[%clk 0:00:03]} 42. Qe3 {[%clk 0:00:05]}  Kf7 {[%clk 0:00:02]} 43. Re4 {[%clk 0:00:04]}  Kg7 {[%clk 0:00:02]} 44. Re7+ {[%clk 0:00:03]}  Kg8 {[%clk 0:00:02]} 45. Re8+ {[%clk 0:00:04]} 1-0


[Site "https://www.chess.com"]

[Event "Titled Tuesday Blitz September 13 Late 2022"]
[White "Barp, Alberto"]
[Black "Ozen, Bahadir"]
[WhiteFideId "872555"]
[BlackFideId "6337058"]
[WhiteElo "2229"]
[BlackElo "2503"]
[Result "1/2-1/2"]
[Round "04"]
[TimeControl "180+1"]
[Date "2022.09.13"]
[WhiteClock "0:00:22"]
[BlackClock "0:00:13"]

1. d4 {[%clk 0:03:00]}  Nf6 {[%clk 0:02:59]} 2. c4 {[%clk 0:02:59]}  e6 {[%clk 0:02:59]} 3. g3 {[%clk 0:02:57]}  d5 {[%clk 0:02:59]} 4. Bg2 {[%clk 0:02:57]}  Bb4+ {[%clk 0:02:59]} 5. Bd2 {[%clk 0:02:54]}  Be7 {[%clk 0:02:58]} 6. Nc3 {[%clk 0:02:53]}  O-O {[%clk 0:02:53]} 7. Qb3 {[%clk 0:02:50]}  c6 {[%clk 0:02:16]} 8. Nf3 {[%clk 0:02:48]}  b6 {[%clk 0:02:16]} 9. O-O {[%clk 0:02:31]}  Ba6 {[%clk 0:02:13]} 10. cxd5 {[%clk 0:02:24]}  cxd5 {[%clk 0:02:14]} 11. Rfc1 {[%clk 0:02:23]}  Nbd7 {[%clk 0:01:51]} 12. a4 {[%clk 0:02:17]}  Bc4 {[%clk 0:01:48]} 13. Qd1 {[%clk 0:02:16]}  a5 {[%clk 0:01:28]} 14. b3 {[%clk 0:02:10]}  Ba6 {[%clk 0:01:27]} 15. Nb5 {[%clk 0:02:11]}  Bxb5 {[%clk 0:01:27]} 16. axb5 {[%clk 0:02:11]}  Ne4 {[%clk 0:01:18]} 17. Bf4 {[%clk 0:02:10]}  Bd6 {[%clk 0:01:10]} 18. Bxd6 {[%clk 0:01:53]}  Nxd6 {[%clk 0:01:10]} 19. Qd3 {[%clk 0:01:54]}  Rc8 {[%clk 0:00:52]} 20. e3 {[%clk 0:01:37]}  h6 {[%clk 0:00:52]} 21. Rc6 {[%clk 0:01:26]}  Nb8 {[%clk 0:00:51]} 22. Rcc1 {[%clk 0:01:11]}  Qd7 {[%clk 0:00:46]} 23. Bf1 {[%clk 0:01:09]}  Rxc1 {[%clk 0:00:46]} 24. Rxc1 {[%clk 0:01:09]}  Rc8 {[%clk 0:00:47]} 25. Rc2 {[%clk 0:01:01]}  Rxc2 {[%clk 0:00:45]} 26. Qxc2 {[%clk 0:01:02]}  Qc8 {[%clk 0:00:46]} 27. Qxc8+ {[%clk 0:01:00]}  Nxc8 {[%clk 0:00:47]} 28. Ne5 {[%clk 0:00:59]}  Nd6 {[%clk 0:00:44]} 29. f3 {[%clk 0:00:51]}  Kf8 {[%clk 0:00:44]} 30. Kf2 {[%clk 0:00:51]}  Ke7 {[%clk 0:00:43]} 31. Bd3 {[%clk 0:00:47]}  f6 {[%clk 0:00:37]} 32. Ng6+ {[%clk 0:00:47]}  Kf7 {[%clk 0:00:37]} 33. h4 {[%clk 0:00:43]}  Nd7 {[%clk 0:00:37]} 34. h5 {[%clk 0:00:32]}  Nf8 {[%clk 0:00:32]} 35. Nf4 {[%clk 0:00:29]}  Ke7 {[%clk 0:00:29]} 36. e4 {[%clk 0:00:28]}  dxe4 {[%clk 0:00:27]} 37. fxe4 {[%clk 0:00:29]}  Nd7 {[%clk 0:00:24]} 38. Ke3 {[%clk 0:00:30]}  Nf8 {[%clk 0:00:15]} 39. e5 {[%clk 0:00:29]}  fxe5 {[%clk 0:00:13]} 40. dxe5 {[%clk 0:00:30]}  Nf7 {[%clk 0:00:14]} 41. Kd4 {[%clk 0:00:29]}  Nd7 {[%clk 0:00:11]} 42. Ng6+ {[%clk 0:00:29]}  Kd8 {[%clk 0:00:12]} 43. Bc4 {[%clk 0:00:28]}  Nc5 {[%clk 0:00:12]} 44. Nf4 {[%clk 0:00:21]}  Ke7 {[%clk 0:00:12]} 45. Ng6+ {[%clk 0:00:21]}  Kd8 {[%clk 0:00:12]} 46. Nf4 {[%clk 0:00:21]}  Ke7 {[%clk 0:00:12]} 47. Ng6+ {[%clk 0:00:22]}  Kd8 {[%clk 0:00:13]} 1/2-1/2


[Site "https://www.chess.com"]

[Event "Titled Tuesday Blitz September 13 Late 2022"]
[White "Bayo Milagro, Alvaro"]
[Black "Tari, Aryan"]
[WhiteFideId "22275240"]
[BlackFideId "1510045"]
[WhiteElo "2270"]
[BlackElo "2612"]
[Result "1-0"]
[Round "04"]
[TimeControl "180+1"]
[Date "2022.09.13"]
[WhiteClock "0:00:18"]
[BlackClock "0:00:01"]

1. e4 {[%clk 0:03:00]}  c6 {[%clk 0:02:59]} 2. d4 {[%clk 0:03:00]}  d5 {[%clk 0:03:00]} 3. Nc3 {[%clk 0:03:01]}  dxe4 {[%clk 0:03:00]} 4. Nxe4 {[%clk 0:03:01]}  Nf6 {[%clk 0:03:00]} 5. Nxf6+ {[%clk 0:03:01]}  exf6 {[%clk 0:03:01]} 6. c3 {[%clk 0:02:58]}  Bd6 {[%clk 0:03:00]} 7. Bd3 {[%clk 0:02:59]}  O-O {[%clk 0:02:59]} 8. Qc2 {[%clk 0:03:00]}  Re8+ {[%clk 0:02:57]} 9. Ne2 {[%clk 0:03:00]}  h5 {[%clk 0:02:57]} 10. Be3 {[%clk 0:02:53]}  Nd7 {[%clk 0:02:56]} 11. O-O-O {[%clk 0:02:53]}  b5 {[%clk 0:02:56]} 12. Kb1 {[%clk 0:02:52]}  Nb6 {[%clk 0:02:55]} 13. h4 {[%clk 0:02:47]}  Be6 {[%clk 0:02:52]} 14. Nf4 {[%clk 0:02:42]}  Bxf4 {[%clk 0:02:51]} 15. Bxf4 {[%clk 0:02:43]}  Qd5 {[%clk 0:02:49]} 16. b3 {[%clk 0:02:39]}  a5 {[%clk 0:02:49]} 17. Be4 {[%clk 0:02:37]}  Qd7 {[%clk 0:02:49]} 18. Kb2 {[%clk 0:02:02]}  a4 {[%clk 0:02:47]} 19. f3 {[%clk 0:02:01]}  Ra6 {[%clk 0:02:27]} 20. g4 {[%clk 0:01:57]}  Rea8 {[%clk 0:02:21]} 21. b4 {[%clk 0:01:53]}  Bb3 {[%clk 0:01:53]} 22. Qg2 {[%clk 0:01:38]}  Bxd1 {[%clk 0:01:35]} 23. gxh5 {[%clk 0:01:35]}  Bxf3 {[%clk 0:00:50]} 24. Bxf3 {[%clk 0:01:29]}  Qf5 {[%clk 0:00:39]} 25. Rg1 {[%clk 0:01:18]}  g6 {[%clk 0:00:31]} 26. hxg6 {[%clk 0:01:11]}  Qxf4 {[%clk 0:00:11]} 27. gxf7+ {[%clk 0:01:11]}  Kxf7 {[%clk 0:00:12]} 28. Qg7+ {[%clk 0:01:04]}  Ke6 {[%clk 0:00:08]} 29. Re1+ {[%clk 0:00:55]}  Qe5 {[%clk 0:00:01]} 30. dxe5 {[%clk 0:00:55]}  Nc4+ {[%clk 0:00:02]} 31. Kc1 {[%clk 0:00:49]}  Nxe5 {[%clk 0:00:03]} 32. Bg4+ {[%clk 0:00:36]}  Kd5 {[%clk 0:00:03]} 33. Rd1+ {[%clk 0:00:30]}  Kc4 {[%clk 0:00:03]} 34. Qxf6 {[%clk 0:00:21]}  Re8 {[%clk 0:00:01]} 35. Be6+ {[%clk 0:00:18]} 1-0


[Site "https://www.chess.com"]

[Event "Titled Tuesday Blitz September 13 Late 2022"]
[White "Bortnyk, Olexandr"]
[Black "Sliwicki, Damian"]
[WhiteFideId "14120828"]
[BlackFideId "1127128"]
[WhiteElo "2723"]
[BlackElo "2135"]
[Result "1-0"]
[Round "04"]
[TimeControl "180+1"]
[Date "2022.09.13"]
[WhiteClock "0:00:59"]
[BlackClock "0:00:05"]

1. d4 {[%clk 0:03:00]}  Nf6 {[%clk 0:02:54]} 2. Nc3 {[%clk 0:03:00]}  d5 {[%clk 0:02:51]} 3. Bf4 {[%clk 0:03:00]}  a6 {[%clk 0:02:47]} 4. e3 {[%clk 0:03:00]}  e6 {[%clk 0:02:47]} 5. Nf3 {[%clk 0:02:58]}  c5 {[%clk 0:02:44]} 6. a3 {[%clk 0:02:56]}  Nc6 {[%clk 0:02:44]} 7. h3 {[%clk 0:02:54]}  Ne4 {[%clk 0:02:36]} 8. Bd3 {[%clk 0:02:32]}  Nxc3 {[%clk 0:02:34]} 9. bxc3 {[%clk 0:02:33]}  c4 {[%clk 0:02:33]} 10. Be2 {[%clk 0:02:33]}  Bd6 {[%clk 0:02:29]} 11. Bxd6 {[%clk 0:02:13]}  Qxd6 {[%clk 0:02:30]} 12. e4 {[%clk 0:02:14]}  O-O {[%clk 0:02:12]} 13. e5 {[%clk 0:02:11]}  Qc7 {[%clk 0:02:10]} 14. Qd2 {[%clk 0:02:07]}  f6 {[%clk 0:02:07]} 15. Qe3 {[%clk 0:02:02]}  fxe5 {[%clk 0:02:01]} 16. Nxe5 {[%clk 0:02:03]}  Nxe5 {[%clk 0:02:01]} 17. dxe5 {[%clk 0:02:02]}  Qf7 {[%clk 0:01:25]} 18. O-O {[%clk 0:01:43]}  Qf4 {[%clk 0:01:19]} 19. Qd4 {[%clk 0:01:19]}  Rf5 {[%clk 0:01:08]} 20. Bg4 {[%clk 0:01:12]}  Qxd4 {[%clk 0:00:56]} 21. cxd4 {[%clk 0:01:13]}  Rf4 {[%clk 0:00:56]} 22. c3 {[%clk 0:01:13]}  Bd7 {[%clk 0:00:54]} 23. a4 {[%clk 0:01:14]}  Raf8 {[%clk 0:00:50]} 24. g3 {[%clk 0:01:14]}  R4f7 {[%clk 0:00:46]} 25. f4 {[%clk 0:01:14]}  g6 {[%clk 0:00:44]} 26. Rfb1 {[%clk 0:01:14]}  h5 {[%clk 0:00:42]} 27. Bd1 {[%clk 0:01:13]}  Bc6 {[%clk 0:00:40]} 28. h4 {[%clk 0:01:13]}  Kg7 {[%clk 0:00:39]} 29. Rb6 {[%clk 0:01:13]}  Re7 {[%clk 0:00:37]} 30. Bc2 {[%clk 0:01:13]}  Ref7 {[%clk 0:00:36]} 31. Kf2 {[%clk 0:01:12]}  g5 {[%clk 0:00:29]} 32. hxg5 {[%clk 0:01:13]}  h4 {[%clk 0:00:30]} 33. Rf1 {[%clk 0:01:13]}  Rh8 {[%clk 0:00:24]} 34. Rbb1 {[%clk 0:01:09]}  Rff8 {[%clk 0:00:19]} 35. Rh1 {[%clk 0:01:09]}  Be8 {[%clk 0:00:17]} 36. Rxb7+ {[%clk 0:01:08]}  Kg8 {[%clk 0:00:17]} 37. Ke3 {[%clk 0:01:02]}  hxg3 {[%clk 0:00:16]} 38. Bh7+ {[%clk 0:01:01]}  Rxh7 {[%clk 0:00:15]} 39. Rhxh7 {[%clk 0:01:01]}  Bf7 {[%clk 0:00:06]} 40. g6 {[%clk 0:00:59]}  g2 {[%clk 0:00:05]} 41. Kf2 {[%clk 0:00:59]} 1-0


[Site "https://www.chess.com"]

[Event "Titled Tuesday Blitz September 13 Late 2022"]
[White "Domingo Nunez, Ruben"]
[Black "Graif, William"]
[WhiteFideId "22245570"]
[BlackFideId "2609835"]
[WhiteElo "2406"]
[BlackElo "1942"]
[Result "1-0"]
[Round "04"]
[TimeControl "180+1"]
[Date "2022.09.13"]
[WhiteClock "0:01:37"]
[BlackClock "0:00:07"]

1. Nf3 {[%clk 0:03:00]}  e5 {[%clk 0:02:46]} 2. Nxe5 {[%clk 0:02:57]}  Nc6 {[%clk 0:02:45]} 3. Nxc6 {[%clk 0:02:55]}  dxc6 {[%clk 0:02:44]} 4. e4 {[%clk 0:02:55]}  Bc5 {[%clk 0:02:39]} 5. Nc3 {[%clk 0:02:55]}  Nf6 {[%clk 0:02:33]} 6. h3 {[%clk 0:02:55]}  g5 {[%clk 0:02:00]} 7. d3 {[%clk 0:02:45]}  g4 {[%clk 0:01:56]} 8. Bg5 {[%clk 0:02:43]}  Qd6 {[%clk 0:01:03]} 9. Qd2 {[%clk 0:01:55]}  g3 {[%clk 0:00:50]} 10. Be3 {[%clk 0:01:55]}  Bxe3 {[%clk 0:00:31]} 11. Qxe3 {[%clk 0:01:54]}  gxf2+ {[%clk 0:00:21]} 12. Qxf2 {[%clk 0:01:55]}  Be6 {[%clk 0:00:20]} 13. d4 {[%clk 0:01:47]}  Nd7 {[%clk 0:00:17]} 14. O-O-O {[%clk 0:01:36]}  O-O-O {[%clk 0:00:16]} 15. d5 {[%clk 0:01:36]}  cxd5 {[%clk 0:00:07]} 16. exd5 {[%clk 0:01:37]} 1-0


[Site "https://www.chess.com"]

[Event "Titled Tuesday Blitz September 13 Late 2022"]
[White "Dong, Bao Nghia"]
[Black "Kravtsiv, Martyn"]
[WhiteFideId "12400343"]
[BlackFideId "14113147"]
[WhiteElo "2344"]
[BlackElo "2694"]
[Result "0-1"]
[Round "04"]
[TimeControl "180+1"]
[Date "2022.09.13"]
[WhiteClock "0:01:17"]
[BlackClock "0:00:49"]

1. d4 {[%clk 0:02:59]}  d5 {[%clk 0:02:59]} 2. c4 {[%clk 0:02:58]}  e6 {[%clk 0:02:59]} 3. Nc3 {[%clk 0:02:58]}  Bb4 {[%clk 0:02:59]} 4. Nf3 {[%clk 0:02:57]}  Nd7 {[%clk 0:02:56]} 5. cxd5 {[%clk 0:02:56]}  exd5 {[%clk 0:02:55]} 6. Bg5 {[%clk 0:02:55]}  Ngf6 {[%clk 0:02:53]} 7. e3 {[%clk 0:02:55]}  c5 {[%clk 0:02:52]} 8. Bb5 {[%clk 0:02:54]}  Qa5 {[%clk 0:02:27]} 9. Bxd7+ {[%clk 0:02:53]}  Nxd7 {[%clk 0:02:01]} 10. O-O {[%clk 0:02:51]}  c4 {[%clk 0:01:59]} 11. Ne2 {[%clk 0:02:48]}  h6 {[%clk 0:01:56]} 12. Bf4 {[%clk 0:02:47]}  O-O {[%clk 0:01:55]} 13. h3 {[%clk 0:02:44]}  Nf6 {[%clk 0:01:52]} 14. Ne5 {[%clk 0:02:40]}  Be6 {[%clk 0:01:50]} 15. a3 {[%clk 0:02:38]}  Be7 {[%clk 0:01:49]} 16. Bh2 {[%clk 0:02:38]}  Ne4 {[%clk 0:01:44]} 17. Nf4 {[%clk 0:02:35]}  Nd2 {[%clk 0:01:39]} 18. Nxe6 {[%clk 0:02:26]}  fxe6 {[%clk 0:01:38]} 19. Qg4 {[%clk 0:02:26]}  Rf5 {[%clk 0:01:26]} 20. Rfd1 {[%clk 0:02:21]}  Raf8 {[%clk 0:01:22]} 21. f4 {[%clk 0:02:20]}  Ne4 {[%clk 0:01:17]} 22. Bg3 {[%clk 0:02:13]}  Qb5 {[%clk 0:01:17]} 23. Rab1 {[%clk 0:02:00]}  Bf6 {[%clk 0:01:14]} 24. Be1 {[%clk 0:01:47]}  Bxe5 {[%clk 0:01:13]} 25. dxe5 {[%clk 0:01:47]}  a5 {[%clk 0:01:10]} 26. Qg6 {[%clk 0:01:35]}  Qb6 {[%clk 0:01:09]} 27. Kh2 {[%clk 0:01:30]}  Qxe3 {[%clk 0:01:06]} 28. Qxe6+ {[%clk 0:01:30]}  Kh8 {[%clk 0:01:06]} 29. Qxd5 {[%clk 0:01:27]}  Qxf4+ {[%clk 0:01:04]} 30. Kg1 {[%clk 0:01:28]}  Qe3+ {[%clk 0:00:51]} 31. Kh2 {[%clk 0:01:28]}  Rf1 {[%clk 0:00:49]} 32. Qd4 {[%clk 0:01:20]}  Qf4+ {[%clk 0:00:49]} 33. g3 {[%clk 0:01:17]}  Qf3 {[%clk 0:00:49]} 0-1


[Site "https://www.chess.com"]